[Event "58th Akiba Rubinstein C 2022"]
[Site "Polanica-Zdroj"]
[Date "2022.08.13"]
[Round "1.1"]
[White "Marusenko, Petr"]
[Black "Sobotka, Jan"]
[Result "1-0"]
[ECO "D35"]
[WhiteElo "2075"]
[BlackElo "1594"]
[Annotator "NA RC"]
[PlyCount "77"]
[EventDate "2022.08.13"]
[EventCountry "POL"]
[SourceTitle "playchess.com"]
[Source "ChessBase"]
[SourceQuality "1"]
[TimeControl "40/5400+30:1800+30"]

1. d4 {[%emt 0:00:05]} d5 {[%emt 0:00:20]} 2. c4 {[%emt 0:00:05]} e6 {[%emt 0:00:11]} 3. Nc3 {[%emt 0:00:08]} Nf6 {[%emt 0:00:07]} 4. cxd5 {[%emt 0:00:04]} exd5 {[%emt 0:00:19]} 5. Bg5 {[%emt 0:00:08]} Be6 {[%emt 0:00:52]} 6. Qb3 {[%emt 0:02:14]} b6 {[%emt 0:08:02]} 7. e3 {[%emt 0:00:18]} Be7 {[%emt 0:02:08]} 8. Nf3 {[%emt 0:00:11]} O-O {[%emt 0:01:13]} 9. Ne5 {[%emt 0:05:02]} c5 {[%emt 0:06:50]} 10. dxc5 {[%emt 0:00:38]} bxc5 {[%emt 0:01:19]} 11. Qb7 {[%emt 0:03:45]} Nbd7 {[%emt 0:13:11]} 12. Nc6 {[%emt 0:00:29]} Qe8 {[%emt 0:00:43]} 13. Rd1 {[%emt 0:03:37]} Bd6 {[%emt 0:02:33]} 14. Nb5 {[%emt 0:01:28]} Be5 {[%emt 0:08:37]} 15. Be2 {[%emt 0:02:13]} a6 {[%emt 0:04:07]} 16. f4 {[%emt 0:11:31]} axb5 {[%emt 0:06:09]} 17. fxe5 {[%emt 0:00:12]} Ne4 {[%emt 0:01:33]} 18. Be7 Rxa2 {[%emt 0:13:55]} 19. Bxf8 {[%emt 0:00:29]} Kxf8 {[%emt 0:03:48]} 20. O-O {[%emt 0:05:56]} Qa8 {[%emt 0:01:00]} 21. Qxa8+ {[%emt 0:02:34]} Rxa8 {[%emt 0:00:06]} 22. Ra1 {[%emt 0:00:06]} Rc8 {[%emt 0:05:32]} 23. Bxb5 {[%emt 0:00:11]} Nb8 {[%emt 0:02:00]} 24. Ra8 {[%emt 0:03:42]} Nxc6 {[%emt 0:02:54]} 25. Rxc8+ {[%emt 0:01:49]} Bxc8 {[%emt 0:00:06]} 26. Bxc6 {[%emt 0:00:08]} Be6 {[%emt 0:00:15]} 27. Rd1 {[%emt 0:00:23]} f5 {[%emt 0:03:34]} 28. Bxd5 {[%emt 0:01:00]} Ke7 29. Bxe4 fxe4 {[%emt 0:01:37]} 30. Rd6 {[%emt 0:01:10]} g5 {[%emt 0:01:10]} 31. Kf2 {[%emt 0:00:48]} h5 {[%emt 0:00:24]} 32. Ke2 {[%emt 0:00:32]} Kf7 {[%emt 0:01:01]} 33. Kd2 {[%emt 0:00:09]} h4 {[%emt 0:01:35]} 34. Kc3 {[%emt 0:02:12]} g4 {[%emt 0:00:51]} 35. g3 {[%emt 0:00:06]} hxg3 {[%emt 0:03:07]} 36. hxg3 {[%emt 0:00:15]} Ke7 {[%emt 0:00:11]} 37. Rc6 {[%emt 0:00:15]} c4 {[%emt 0:00:24]} 38. Rc7+ {[%emt 0:00:24]} Kd8 {[%emt 0:00:22]} 39. Rxc4 {[%emt 0:00:09]} 1-0

[Event "58th Akiba Rubinstein C 2022"]
[Site "Polanica-Zdroj"]
[Date "2022.08.13"]
[Round "1.2"]
[White "Gregulski, Zbigniew"]
[Black "Zowada, Kazimierz"]
[Result "1/2-1/2"]
[ECO "A53"]
[WhiteElo "1591"]
[BlackElo "2041"]
[Annotator "NA RC"]
[PlyCount "175"]
[EventDate "2022.08.13"]
[EventCountry "POL"]
[SourceTitle "playchess.com"]
[Source "ChessBase"]
[SourceQuality "1"]
[TimeControl "40/5400+30:1800+30"]

1. d4 {[%emt 0:00:13]} Nf6 {[%emt 0:01:53]} 2. c4 {[%emt 0:00:13]} d6 {[%emt 0:00:16]} 3. Nc3 {[%emt 0:00:10]} c6 {[%emt 0:00:25]} 4. Nf3 {[%emt 0:00:40]} Nbd7 {[%emt 0:00:11]} 5. g3 {[%emt 0:01:24]} e5 {[%emt 0:00:31]} 6. dxe5 {[%emt 0:01:21]} dxe5 {[%emt 0:00:12]} 7. Bg2 {[%emt 0:00:40]} Be7 {[%emt 0:02:08]} 8. O-O {[%emt 0:00:14]} O-O {[%emt 0:00:12]} 9. Qc2 {[%emt 0:00:58]} Qc7 {[%emt 0:00:22]} 10. a3 {[%emt 0:01:24]} Nb6 {[%emt 0:01:33]} 11. b3 {[%emt 0:00:51]} Bg4 {[%emt 0:00:53]} 12. Bb2 {[%emt 0:03:27]} Rfe8 {[%emt 0:00:31]} 13. Nh4 {[%emt 0:07:42]} Qc8 {[%emt 0:01:59]} 14. Nf3 {[%emt 0:02:35]} Bf8 {[%emt 0:01:13]} 15. Ne4 {[%emt 0:03:29]} Nxe4 {[%emt 0:03:04]} 16. Qxe4 {[%emt 0:00:15]} Bf5 {[%emt 0:00:40]} 17. Qe3 {[%emt 0:01:05]} f6 {[%emt 0:01:35]} 18. a4 Nd7 {[%emt 0:01:11]} 19. Ba3 {[%emt 0:03:17]} Bxa3 {[%emt 0:09:34]} 20. Rxa3 {[%emt 0:00:09]} a5 {[%emt 0:00:12]} 21. Ra2 {[%emt 0:01:41]} Qc7 {[%emt 0:05:59]} 22. Rd2 {[%emt 0:04:49]} Rad8 {[%emt 0:02:13]} 23. Rfd1 {[%emt 0:00:38]} Nf8 {[%emt 0:00:43]} 24. Qc3 {[%emt 0:02:13]} Rxd2 {[%emt 0:03:29]} 25. Rxd2 {[%emt 0:01:26]} Qb6 {[%emt 0:01:51]} 26. Nh4 {[%emt 0:00:56]} Be6 {[%emt 0:01:14]} 27. Be4 {[%emt 0:00:31]} g6 {[%emt 0:01:46]} 28. Bc2 {[%emt 0:00:42]} Nd7 {[%emt 0:02:12]} 29. Ng2 {[%emt 0:03:15]} Nc5 30. Qe3 {[%emt 0:03:40]} Qb4 {[%emt 0:02:21]} 31. h4 {[%emt 0:01:31]} Bf7 {[%emt 0:04:47]} 32. Ne1 {[%emt 0:01:22]} Ne6 {[%emt 0:00:38]} 33. Nf3 {[%emt 0:00:53]} Qc5 {[%emt 0:06:23]} 34. Qh6 {[%emt 0:03:19]} Qf8 {[%emt 0:03:03]} 35. Qe3 {[%emt 0:00:26]} Nc5 {[%emt 0:00:14]} 36. h5 {[%emt 0:01:34]} Qe7 {[%emt 0:02:01]} 37. hxg6 {[%emt 0:04:42]} Bxg6 {[%emt 0:01:22]} 38. Nh4 {[%emt 0:01:13]} e4 39. Rd4 {[%emt 0:02:34]} f5 {[%emt 0:06:38]} 40. Ng2 {[%emt 0:00:00]} Ne6 {[%emt 0:00:00]} 41. Rd1 {[%emt 0:02:34]} Rd8 {[%emt 0:03:31]} 42. Nf4 {[%emt 0:01:59]} Rxd1+ {[%emt 0:01:34]} 43. Bxd1 {[%emt 0:00:10]} Nc5 {[%emt 0:03:09]} 44. Qd4 {[%emt 0:02:52]} Bf7 {[%emt 0:00:56]} 45. Bc2 {[%emt 0:01:22]} h5 {[%emt 0:01:45]} 46. Ng2 {[%emt 0:00:45]} b6 {[%emt 0:00:33]} 47. Nh4 {[%emt 0:00:43]} f4 {[%emt 0:00:33]} 48. Nf5 {[%emt 0:01:37]} Qg5 {[%emt 0:02:05]} 49. Bxe4 {[%emt 0:01:20]} Nxe4 {[%emt 0:00:51]} 50. Qxe4 {[%emt 0:00:24]} fxg3 {[%emt 0:01:05]} 51. fxg3 {[%emt 0:05:11]} h4 {[%emt 0:00:41]} 52. Qe5 {[%emt 0:01:03]} Kh7 {[%emt 0:00:30]} 53. Qf4 {[%emt 0:05:06]} Qxf4 {[%emt 0:02:30]} 54. gxf4 {[%emt 0:00:10]} Bg6 {[%emt 0:00:38]} 55. Ne7 {[%emt 0:02:34]} Bc2 56. Nc8 Bxb3 {[%emt 0:06:56]} 57. Nxb6 {[%emt 0:00:41]} Kg6 {[%emt 0:00:28]} 58. Kg2 {[%emt 0:01:56]} Kf5 {[%emt 0:00:16]} 59. e3 {[%emt 0:02:26]} Kg4 {[%emt 0:02:03]} 60. c5 {[%emt 0:01:20]} Be6 {[%emt 0:00:57]} 61. Kh2 {[%emt 0:01:38]} Kf3 {[%emt 0:00:22]} 62. f5 {[%emt 0:02:10]} Bb3 {[%emt 0:01:33]} 63. f6 {[%emt 0:01:08]} Kxe3 {[%emt 0:00:17]} 64. Kh3 {[%emt 0:02:17]} Kd4 {[%emt 0:01:16]} 65. Nd7 Bg8 {[%emt 0:05:14]} 66. Kxh4 {[%emt 0:01:16]} Kc4 {[%emt 0:00:06]} 67. Kg5 {[%emt 0:01:02]} Kb4 {[%emt 0:00:10]} 68. Kf4 {[%emt 0:05:19]} Kxa4 {[%emt 0:00:17]} 69. Ke3 {[%emt 0:01:32]} Kb3 {[%emt 0:04:35]} 70. Kd2 {[%emt 0:01:47]} Kb2 {[%emt 0:01:52]} 71. Nb6 {[%emt 0:03:24]} Bf7 {[%emt 0:00:19]} 72. Kd3 {[%emt 0:02:17]} Kb3 {[%emt 0:03:03]} 73. Kd2 {[%emt 0:00:23]} a4 {[%emt 0:00:57]} 74. Kc1 {[%emt 0:00:35]} Bg6 {[%emt 0:00:50]} 75. f7 {[%emt 0:02:48]} Bxf7 {[%emt 0:01:04]} 76. Kb1 {[%emt 0:00:10]} Be6 {[%emt 0:00:44]} 77. Na8 {[%emt 0:00:40]} Kb4 {[%emt 0:02:35]} 78. Nc7 {[%emt 0:01:20]} Bc8 {[%emt 0:01:04]} 79. Kb2 {[%emt 0:01:35]} Kxc5 {[%emt 0:03:17]} 80. Ka3 {[%emt 0:00:35]} Kd4 {[%emt 0:08:36]} 81. Kxa4 {[%emt 0:01:02]} Kc3 {[%emt 0:00:31]} 82. Ne8 {[%emt 0:00:32]} Bd7 {[%emt 0:01:32]} 83. Nd6 {[%emt 0:01:26]} c5+ {[%emt 0:00:24]} 84. Ka3 {[%emt 0:00:11]} Bc6 {[%emt 0:00:59]} 85. Ka2 {[%emt 0:00:58]} Kc2 {[%emt 0:01:44]} 86. Ka3 {[%emt 0:00:37]} Bd5 {[%emt 0:09:31]} 87. Ka4 {[%emt 0:00:58]} Kd3 {[%emt 0:00:18]} 88. Kb5 {[%emt 0:00:32]} 1/2-1/2

[Event "58th Akiba Rubinstein C 2022"]
[Site "Polanica-Zdroj"]
[Date "2022.08.13"]
[Round "1.3"]
[White "Shilov, Sergej"]
[Black "Muc, Zbigniew"]
[Result "1-0"]
[ECO "A28"]
[WhiteElo "2048"]
[BlackElo "1580"]
[Annotator "NA RC"]
[PlyCount "53"]
[EventDate "2022.08.13"]
[EventCountry "POL"]
[SourceTitle "playchess.com"]
[Source "ChessBase"]
[SourceQuality "1"]
[TimeControl "40/5400+30:1800+30"]

1. c4 {[%emt 0:00:07]} e5 {[%emt 0:11:25]} 2. Nc3 {[%emt 0:00:10]} Nc6 {[%emt 0:02:08]} 3. Nf3 {[%emt 0:00:33]} Nf6 {[%emt 0:00:41]} 4. d4 {[%emt 0:00:34]} exd4 {[%emt 0:06:43]} 5. Nxd4 {[%emt 0:00:10]} Nxd4 {[%emt 0:05:13]} 6. Qxd4 {[%emt 0:00:07]} Be7 {[%emt 0:01:54]} 7. e4 {[%emt 0:01:27]} d6 {[%emt 0:14:57]} 8. Be2 {[%emt 0:04:22]} O-O 9. f3 {[%emt 0:02:48]} b6 {[%emt 0:06:23]} 10. Be3 {[%emt 0:01:24]} Re8 {[%emt 0:04:40]} 11. O-O-O {[%emt 0:02:58]} Bb7 {[%emt 0:03:24]} 12. g4 {[%emt 0:00:58]} Nd7 {[%emt 0:01:03]} 13. Qd2 {[%emt 0:02:54]} Nf8 {[%emt 0:06:22]} 14. g5 {[%emt 0:01:13]} Ne6 {[%emt 0:03:16]} 15. h4 {[%emt 0:00:50]} a5 {[%emt 0:02:01]} 16. Rdg1 {[%emt 0:03:31]} a4 {[%emt 0:01:08]} 17. h5 {[%emt 0:02:52]} Nf8 {[%emt 0:03:14]} 18. Bd3 {[%emt 0:02:43]} Nd7 {[%emt 0:02:16]} 19. g6 {[%emt 0:03:48]} Ne5 {[%emt 0:05:52]} 20. gxf7+ {[%emt 0:01:49]} Kxf7 {[%emt 0:01:02]} 21. Be2 {[%emt 0:00:24]} Bf6 {[%emt 0:06:10]} 22. Nd5 {[%emt 0:01:17]} Bc8 {[%emt 0:03:26]} 23. Nxf6 {[%emt 0:08:05]} gxf6 {[%emt 0:03:26]} 24. f4 {[%emt 0:00:10]} Bb7 {[%emt 0:04:36]} 25. fxe5 {[%emt 0:00:29]} Bxe4 {[%emt 0:00:55]} 26. Rh4 {[%emt 0:01:10]} f5 {[%emt 0:00:43]} 27. Rxe4 {[%emt 0:00:26]} 1-0

[Event "58th Akiba Rubinstein C 2022"]
[Site "Polanica-Zdroj"]
[Date "2022.08.13"]
[Round "1.4"]
[White "Litwin, Tomasz"]
[Black "fainberg, Boris"]
[Result "0-1"]
[ECO "A00"]
[WhiteElo "1580"]
[BlackElo "2015"]
[Annotator "TA"]
[PlyCount "152"]
[EventDate "2022.08.13"]
[EventCountry "POL"]
[SourceTitle "playchess.com"]
[Source "ChessBase"]
[SourceQuality "1"]
[TimeControl "40/5400+30:1800+30"]

{[%evp 13,152,0,0,0,4,0,6,0,17,6,20,3,8,-7,-8,-12,-12,-31,0,-64,-75,-395,-250,-242,-253,-248,-257,-252,-166,-168,-177,-299,-171,-297,-216,-331,-269,-262,-262,-332,-332,-332,-335,-366,-366,-355,-321,-446,-449,-831,0,-1720,-1356,-1097,-513,-494,-104,-105,-126,-101,-73,-73,-63,-61,-72,-83,-81,-77,-61,-332,-282,-508,-460,-484,-186,-207,-131,-406,-242,-474,-450,-404,-143,-333,0,-338,-224,-218,-72,-124,-77,-128,-78,-89,-89,-84,-79,-79,-79,-79,-79,-200,-185,-339,-330,-439,-435,-463,-458,-678,-214,-187,-135,-136,-78,-292,-297,-414,-385,-455,-454,-411,-255,-238,-110,-661,-592,-508,-39,-428,-208,-354,-327,-729,-715,-29971,-29972,-29972,-29972,-29962,-29960]} 1. b4 {[%emt 0:00:32]} e5 {[%emt 0:00:32]} 2. Bb2 {[%emt 0:00:00]} Bxb4 {[%emt 0:00:26]} 3. Bxe5 {[%emt 0:00:00]} Nf6 {[%emt 0:00:15][%cal Bg8f6,Bf6d5,Bd5c3][%mdl 32]} 4. c4 {[%emt 0:00:00]} O-O {[%emt 0:02:55]} 5. e3 {[%emt 0:00:00]} Re8 {[%emt 0:09:42]} 6. Nf3 {[%emt 0:00:00]} Nc6 {[%emt 0:01:57]} 7. Bb2 {[%emt 0:00:00]} d5 {[%emt 0:08:33] Strongly threatening ...d4.} 8. cxd5 {[%emt 0:01:37] A00: Irregular Openings.} Nxd5 {[%emt 0:03:34]} 9. Be2 {[%emt 0:00:23]} Bg4 {[%emt 0:09:55]} 10. O-O {[%emt 0:01:39] The position is equal.} Qe7 {[%emt 0:13:21]} 11. h3 {[%emt 0:06:17]} Bh5 {[%emt 0:04:54]} 12. a3 {[%emt 0:04:00]} Bd6 {[%emt 0:02:43]} 13. Nc3 {[%emt 0:02:50]} Nxc3 {[%emt 0:03:21]} 14. Bxc3 {[%emt 0:00:49]} Bxa3 {[%emt 0:03:23] [#]} 15. Bb5 $146 {[%emt 0:30:51]} ({Predecessor:} 15. d4 Bb4 16. Qb3 a5 17. Rfc1 Red8 18. Qc4 Bxc3 19. Qxc3 Qb4 20. Qc2 Bg6 21. Bd3 Bxd3 22. Qxd3 {½-½ (33) Kural,A (2325)-Davis,J (2234) ICCF email 2012}) 15... Bd6 (15... a5 $5 {[%cal Ra3b4]}) 16. g4 {[%emt 0:07:29]} (16. Qa4 $11) 16... Bg6 $15 {[%emt 0:02:06]} 17. Nd4 $2 {[%emt 0:00:03][%mdl 8192]} (17. Ra4 $17 {was the crucial defense.}) 17... Qh4 {[%emt 0:08:20]} 18. Nf5 {[%emt 0:23:54]} Bxf5 {[%emt 0:03:59]} ({Not} 18... Qxh3 $2 19. Nxd6 Re6 20. Qe2 (20. Bxc6 $2 bxc6 21. Nxf7 Kxf7 $19) 20... Rxd6 21. f3) 19. gxf5 {[%emt 0:00:40]} Qxh3 $40 {[%emt 0:00:16][%csl Gd6][%cal Rh3h2][%mdl 128] Black wants a kill.} 20. f4 {[%emt 0:00:02]} Qxf5 {[%emt 0:00:36]} 21. Bxc6 {[%emt 0:00:03]} bxc6 {[%emt 0:00:22]} 22. Rf3 {[%emt 0:01:06]} (22. Qf3 $142) 22... Re6 {[%emt 0:02:22]} (22... a5 $142 {White must now prevent ...Bb4.} 23. Rg3 g6) 23. Kf2 {[%emt 0:01:10]} (23. Rg3 $142) 23... a5 {[%emt 0:04:26]} 24. Qh1 {[%emt 0:01:29]} (24. Rg3 {is the only way for White.} Rg6 25. Rxg6 hxg6 26. Qf3) 24... Rh6 {[%emt 0:01:56]} 25. Qg2 {[%emt 0:00:18][%csl Gc3][%cal Rg2g7]} Rg6 {[%emt 0:00:11]} 26. Qh1 {[%emt 0:01:07]} a4 {[%emt 0:02:59]} 27. Rh3 h6 {[%emt 0:00:59]} 28. Qxc6 {[%emt 0:02:06]} Qxh3 {[%emt 0:00:34]} 29. Qxa8+ {[%emt 0:00:02]} Kh7 {[%emt 0:00:04]} 30. Rh1 {[%emt 0:03:52] Prevents Qh2+.} Qg3+ {[%emt 0:00:36]} (30... Qg4 $2 31. Qf3 $19) 31. Kf1 {[%emt 0:00:01]} (31. Ke2 $142 Bxf4 32. Rf1 Qg4+ 33. Qf3) 31... a3 $2 {[%emt 0:02:36]} (31... c6 $19 {( -> ...Qf3+)} 32. Qxc6 Bb4 $1 {[%mdl 512]}) 32. Qe4 {[%emt 0:05:37][%mdl 8192] Prevents Qf3+.} (32. f5 $11 Rg4 33. Rxh6+ Kxh6 34. Qh8+ Kg5 35. Qxg7+ Kxf5 36. Qxf7+ Kg5 37. Qg7+ Kf5 38. Qf7+ Kg5 39. Qg7+ Kf5 40. Qf7+) 32... f5 $19 {[%emt 0:00:58]} 33. Qd5 {[%emt 0:01:14]} a2 {[%emt 0:01:01]} (33... c6 $142 34. Qxc6 Bb4 $1 {[%mdl 512]} 35. Qxg6+ Qxg6 36. Bxb4 Qc6) 34. Ke2 {[%emt 0:00:07]} Qg2+ $2 {[%emt 0:00:48]} (34... Be7 $19 35. Be5 Bb4) 35. Qxg2 $17 {[%emt 0:00:03]} Rxg2+ {[%emt 0:00:13][%mdl 4096] Endgame KRB-KRB} 36. Kf3 {[%emt 0:00:17]} Rg6 {[%emt 0:00:14]} 37. Ra1 {[%emt 0:00:02]} h5 {[%emt 0:03:00]} 38. Rxa2 {[%emt 0:00:09]} h4 {[%emt 0:00:20]} 39. Ra1 {[%emt 0:00:35]} Rg3+ {[%emt 0:00:23]} 40. Kf2 {[%emt 0:00:00]} Kg6 {[%emt 0:00:00]} 41. Rh1 $2 {[%emt 0:00:05][%mdl 8192]} (41. Ra8 $15) 41... Kh5 $19 {[%emt 0:01:07]} 42. Rh2 $2 {[%emt 0:02:06]} (42. Be5 {was the only defense.}) 42... Be7 {[%emt 0:04:12]} 43. Rh1 {[%emt 0:00:55]} Rg6 $2 {[%emt 0:10:47]} (43... g6 {Hoping for ...Kg4.} 44. Ra1 Kg4) 44. Kf3 {[%emt 0:00:29]} Bf8 {[%emt 0:01:07]} 45. Ba5 $2 {[%emt 0:03:15][%mdl 8192]} (45. Ra1 $17) 45... Bd6 {[%emt 0:02:15]} (45... Rg3+ $142 46. Kf2 Bd6) 46. Bc3 $2 {[%emt 0:00:04]} (46. Kf2 {keeps fighting.}) 46... Rg3+ {[%emt 0:01:44]} 47. Kf2 {[%emt 0:00:03]} Bf8 $2 {[%emt 0:00:53]} (47... Be7 $19 {is more deadly.} 48. Rh2 g6) 48. Ba5 $2 {[%emt 0:00:21]} (48. Rb1 $17) 48... Bd6 {[%emt 0:03:21]} 49. Bc3 {[%emt 0:00:05]} Rg4 {[%emt 0:00:44]} 50. Kf3 {[%emt 0:00:03]} Kg6 {[%emt 0:00:22]} (50... g5 $19 51. fxg5 Kxg5) 51. Kf2 {[%emt 0:01:11]} (51. Ba5 $142) 51... Kf7 {[%emt 0:00:18]} (51... c6 $142 52. Ba5 Be7) 52. Rh3 {[%emt 0:06:04]} (52. d3 $142) 52... Ke6 {[%emt 0:00:31]} ({Better is} 52... c5 53. Kf3 c4) 53. d3 $17 {[%emt 0:04:55]} Be7 {[%emt 0:01:44]} 54. Be1 {[%emt 0:01:31]} Kf7 {[%emt 0:00:51]} 55. Kf3 {[%emt 0:00:34]} Kg6 {[%emt 0:00:58]} 56. e4 {[%emt 0:00:32]} Kh5 {[%emt 0:00:45]} 57. e5 {[%emt 0:06:33]} (57. exf5 $17 {was necessary.} Rg1 58. Bf2) 57... Rg1 $19 {[%emt 0:01:46]} 58. Bf2 {[%emt 0:03:42]} (58. Kf2 Rg4 59. Kf3) 58... Rd1 {[%emt 0:00:48]} 59. d4 {[%emt 0:02:17]} c6 {[%emt 0:00:51]} 60. Rh2 {[%emt 0:00:46]} Rd3+ {[%emt 0:00:37]} 61. Be3 {[%emt 0:00:02]} (61. Ke2 $142 Rb3 62. Rh1) 61... Rc3 $2 {[%emt 0:01:57]} (61... g5 62. Rc2 gxf4 63. Kxf4 Bg5+ 64. Kxf5 Rxe3) 62. Rg2 {[%emt 0:02:51]} Kh6 {[%emt 0:01:19]} (62... g6 $19 63. Rg1 Rb3) 63. Ke2 {[%emt 0:04:29] [#]} Rb3 {[%emt 0:00:34]} (63... g6 $142 $1 64. Rg1 Kh5) 64. Bd2 $2 {[%emt 0:00:47]} (64. Rg1 $17) 64... Rb1 {[%emt 0:01:20]} 65. Be1 {[%emt 0:01:45]} g6 {[%emt 0:00:51]} 66. Bd2 {[%emt 0:01:32]} Rh1 {[%emt 0:00:31]} 67. Be3 {[%emt 0:00:43]} Kh5 {[%emt 0:00:37]} 68. Kf3 {[%emt 0:00:25]} Ra1 {[%emt 0:01:32] Inhibits Ra2.} (68... h3 $19 {has better winning chances.} 69. Rg1 Rxg1 70. Bxg1 Bh4) 69. Rh2 $2 {[%emt 0:00:30][%mdl 8192]} (69. Rb2 $17) 69... Ra3 {[%emt 0:00:30]} 70. Rg2 {[%emt 0:00:36] [#]} Bb4 $2 {[%emt 0:00:45]} (70... g5 $1 $19 {[%cal Rg5g4]} 71. fxg5 h3) 71. Rc2 $2 {[%emt 0:01:37][%mdl 8192]} (71. Rb2 $1 $15 Bf8 72. Rb8) 71... Rb3 {[%emt 0:01:14]} (71... h3 $142 72. Rh2 Kh4) 72. e6 {[%emt 0:01:20]} ({Don't go for} 72. Rxc6 $2 Bd2 73. Rc8 Rxe3+ $19) (72. Rg2 $142) 72... h3 {[%emt 0:01:24]} 73. Rh2 $2 {[%emt 0:01:18]} (73. d5 cxd5 74. Rc8) 73... Kh4 {[%emt 0:00:21] aiming for ...Be7.} 74. Rh1 {[%emt 0:00:31]} Bd2 {[%emt 0:00:29] Black mates.} 75. Ke2 {[%emt 0:00:55]} Rxe3+ {[%emt 0:00:12]} 76. Kxd2 {[%emt 0:00:02]} Rxe6 {[%emt 0:00:18] Weighted Error Value: White=0.83/Black=0.65} 0-1

[Event "58th Akiba Rubinstein C 2022"]
[Site "Polanica-Zdroj"]
[Date "2022.08.13"]
[Round "1.6"]
[White "Tomalak, Stanislaw"]
[Black "Szylko, Waldemar"]
[Result "1/2-1/2"]
[ECO "A04"]
[WhiteElo "1554"]
[BlackElo "1911"]
[Annotator "TA"]
[PlyCount "66"]
[EventDate "2022.08.13"]
[EventCountry "POL"]
[SourceTitle "playchess.com"]
[Source "ChessBase"]
[SourceQuality "1"]
[TimeControl "40/5400+30:1800+30"]

{[%evp 9,66,3,7,9,22,0,28,-22,-4,-15,4,-10,10,14,0,-11,5,-16,-6,-12,7,-66,-12,-85,-27,-67,0,-10,0,6,33,0,40,-15,58,38,35,50,133,93,104,0,142,152,150,156,154,114,300,146,203,212,133,24,21,0,205,0,23]} 1. Nf3 {[%emt 0:00:04]} c6 {[%emt 0:00:10]} 2. g3 {[%emt 0:00:11]} f5 {[%emt 0:00:14]} 3. d3 {[%emt 0:00:09]} Nf6 {[%emt 0:00:12] [#]} 4. Nbd2 $146 {[%emt 0:00:09]} ({Predecessor:} 4. Bg2 d5 5. O-O Nbd7 6. Nbd2 e5 7. Nh4 Nb6 8. e4 fxe4 9. dxe4 d4 10. Qe2 Be6 {1-0 (39) Klee,C-Rabl,R Wattens 1998}) 4... d6 {[%emt 0:00:25]} 5. Bg2 {[%emt 0:00:13]} e5 {[%emt 0:00:18]} 6. e4 {[%emt 0:00:18] A04: Unusual lines after 1 Nf3 and King's Indian Attack.} Be7 {[%emt 0:00:14]} 7. O-O {[%emt 0:00:35]} O-O {[%emt 0:00:08]} 8. Re1 {[%emt 0:00:25]} (8. exf5 $142 Bxf5 9. d4) 8... fxe4 $11 {[%emt 0:01:23]} 9. dxe4 {[%emt 0:00:16]} Bg4 {[%emt 0:00:22]} 10. h3 {[%emt 0:00:25]} Bh5 {[%emt 0:00:17]} 11. Nf1 {[%emt 0:02:12]} Na6 {[%emt 0:01:31]} 12. g4 $1 {[%emt 0:01:21]} Bg6 {[%emt 0:00:59]} 13. Ng3 {[%emt 0:00:27]} Nc5 {[%emt 0:02:14][%cal Rf6e4]} 14. Nh2 {[%emt 0:02:58]} Qc7 {[%emt 0:04:00][%cal Od6d5]} 15. Qe2 {[%emt 0:10:09]} (15. g5 $11 Nfd7 16. h4) 15... Rae8 {[%emt 0:03:32]} (15... d5 $15 16. exd5 cxd5) 16. Bd2 {[%emt 0:04:32]} (16. g5 $1 $11) 16... Ne6 {[%emt 0:02:09]} (16... d5 $17 {...Nfxe4 is the strong threat.} 17. exd5 cxd5) 17. c3 {[%emt 0:01:57]} Nd7 {[%emt 0:01:06]} (17... Nf4 18. Bxf4 exf4 19. Nf5 $11) (17... d5 $15 18. exd5 cxd5) 18. Nf5 {[%emt 0:03:25]} Nb6 {[%emt 0:02:00]} 19. Rad1 {[%emt 0:02:59]} Bf7 {[%emt 0:03:52]} 20. h4 {[%emt 0:06:26][%cal Bh3h4,Bh4h5][%mdl 32]} c5 {[%emt 0:21:36]} (20... g6 $5 {[%cal Rg6f5]} 21. Nxe7+ Qxe7 $11) 21. b3 {[%emt 0:08:18]} (21. Be3 $14) 21... a5 {[%emt 0:02:56]} (21... c4 $11) 22. g5 {[%emt 0:04:25]} c4 {[%emt 0:02:59]} 23. Qg4 {[%emt 0:10:06] Threatens to win with h5.} Kh8 {[%emt 0:03:51]} (23... Nc5 $14) 24. h5 $1 $16 {[%emt 0:04:56]} g6 {[%emt 0:01:51]} 25. Nh6 {[%emt 0:02:22] White is more active.} ({White must play} 25. hxg6 $16 Bxg6 26. Nh4) 25... Nf4 {[%emt 0:04:32]} (25... Bd8 $11) 26. Bxf4 {[%emt 0:01:28]} exf4 {[%emt 0:00:21]} 27. Nxf7+ {[%emt 0:01:15]} ({Don't play} 27. Qxf4 Be6 28. Qh4 gxh5 $14) 27... Rxf7 {[%emt 0:00:02]} 28. hxg6 {[%emt 0:07:04]} hxg6 {[%emt 0:01:39]} (28... Rg7 $16) 29. Nf3 {[%emt 0:03:05]} (29. e5 $18 {is the precise move to win.} d5 30. bxc4 dxc4 31. Be4) 29... Bf8 {[%emt 0:02:20]} (29... Qc8 $16 30. Qxc8 Nxc8) 30. Nh4 $18 {[%emt 0:04:21]} Kg7 {[%emt 0:01:27] [#]} 31. Bf3 {[%emt 0:00:42]} ({White should play} 31. e5 $1 $16 {[%cal Re5e6]}) 31... Re5 {[%emt 0:02:09]} 32. Bg2 $2 ({Don't blunder} 32. Nxg6 $2 Kxg6 33. Qh5+ Kg7 $19) (32. Be2 $11) 32... Re8 {[#]} 33. Bf3 $2 (33. e5 $1 $18 {[%cal Re5e6]}) 33... Re5 {Weighted Error Value: White=0.39/Black=0.36} 1/2-1/2